lending/lending_fUSD_20250429
["ID","MTS","AMOUNT","RATE_DAILY","PERIOD"]
[359303643,1745901734929,711.23,0.00038356,30]
[359303644,1745901735477,470.0,0.00038356,30]
[359303645,1745901735966,470.0,0.00038356,30]
[359303646,1745901736885,470.0,0.00038356,30]
[359303647,1745901738406,470.0,0.00038356,30]
[359303648,1745901738507,470.0,0.00038356,30]
[359303649,1745901738732,470.0,0.00038356,30]
[359303650,1745901738836,160.0,0.000382,56]
[359303651,1745901739321,160.0,0.000372,53]
[359303652,1745901739785,160.0,0.000362,50]
[359303653,1745901739878,470.0,0.00038356,30]
[359303654,1745901740531,987.81,0.00038356,30]
[359303655,1745901741520,1482.86,0.00038356,30]
[359303656,1745901743268,470.0,0.00038356,30]
[359303657,1745901744735,699.08,0.00038356,30]
[359303658,1745901746354,420.96555798,0.00038356,30]
[359303659,1745901747041,900.88,0.00038356,30]
[359303660,1745901747284,470.0,0.00038356,30]
[359303661,1745901748824,503.76,0.00038356,30]
[359303662,1745901753511,470.0,0.00038356,30]
[359303663,1745901753564,470.0,0.00038356,30]
[359303664,1745901753621,470.0,0.00038356,30]
[359303665,1745901753975,548.64,0.00038356,30]
[359303666,1745901754153,470.0,0.00038356,30]
[359303667,1745901755287,1204.95,0.00038356,30]
[359303668,1745901755379,470.0,0.00038356,30]
[359303669,1745901755830,26296.11,0.00038356,30]
[359303670,1745901756294,470.0,0.00038356,30]
[359303671,1745901757499,470.0,0.00038356,30]
[359303672,1745901759530,470.0,0.00038356,30]
[359303673,1745901759834,470.0,0.00038356,30]
[359303674,1745901761255,470.0,0.00038356,30]
[359303675,1745901761697,583.07,0.00038356,30]
[359303676,1745901762196,470.0,0.00038356,30]
[359303677,1745901762964,660.59,0.00038356,30]
[359303678,1745901764380,3610.97,0.00038356,30]
[359303679,1745901764632,470.0,0.00038356,30]
[359303680,1745901768093,614.96,0.00038356,30]
[359303681,1745901768286,470.0,0.00038356,30]
[359303682,1745901768334,595.8,0.00038356,30]
[359303683,1745901771090,470.0,0.00038356,30]
[359303684,1745901772886,639.85,0.00038356,30]
[359303685,1745901773217,470.0,0.00038356,30]
[359303686,1745901773368,470.0,0.00038356,30]
[359303687,1745901774628,2039.77,0.00038356,30]
[359303688,1745901775555,573.73,0.00038356,30]
[359303689,1745901776527,470.0,0.00038356,30]
[359303690,1745901777938,470.0,0.00038356,30]
[359303691,1745901779886,470.0,0.00038356,30]
[359303692,1745901780559,710.05,0.00038356,30]
[359303693,1745901783254,1673.63,0.00038356,30]
[359303694,1745901783323,411.23061238,0.00038356,30]
[359303695,1745901783380,691.81,0.00038356,30]
[359303696,1745901783631,534.48,0.00038356,30]
[359303697,1745901783695,611.66,0.00038356,30]
[359303698,1745901785150,470.0,0.00038356,30]
[359303699,1745901786604,470.0,0.00038356,30]
[359303700,1745901787821,519.38,0.00038356,30]
[359303701,1745901788137,470.0,0.00038356,30]
[359303702,1745901788296,919.9,0.00036986,60]
[359303703,1745901788807,470.0,0.00038356,30]
[359303704,1745901790824,665.09,0.00038356,30]
[359303705,1745901791046,470.0,0.00038356,30]
[359303706,1745901791113,801.23,0.00038356,30]
[359303707,1745901792085,550.57,0.00038356,30]
[359303708,1745901792705,162.25951048,0.00038356,30]
[359303709,1745901792981,1030.65,0.00038356,30]
[359303710,1745901793078,470.0,0.00038356,30]
[359303711,1745901794151,635.19,0.00038356,30]
[359303712,1745901795718,470.0,0.00038356,30]
[359303713,1745901795866,470.0,0.00038356,30]
[359303714,1745901796142,470.0,0.00038356,30]
[359303715,1745901796421,470.0,0.00038356,30]
[359303716,1745901798922,999.0,0.00038356,30]
[359303717,1745901799230,470.0,0.00038356,30]
[359303718,1745901800012,522.36,0.00038356,30]
[359303719,1745901800058,470.0,0.00038356,30]
[359303720,1745901800827,354.43964969,0.00038356,30]
[359303721,1745901801422,470.0,0.00038356,30]
[359303722,1745901802474,470.0,0.00038356,30]
[359303723,1745901802925,487.78,0.00038356,30]
[359303724,1745901803857,542.01302093,0.00038356,30]
[359303725,1745901804592,5170.24,0.00038356,30]
[359303726,1745901806060,470.0,0.00038356,30]
[359303727,1745901806113,470.0,0.00038356,30]
[359303728,1745901806172,470.0,0.00038356,30]
[359303729,1745901806884,470.0,0.00038356,30]
[359303730,1745901807223,470.0,0.00038356,30]
[359303731,1745901807369,495.77,0.00038356,30]
[359303732,1745901808795,520.4,0.00038356,30]
[359303733,1745901810994,545.19,0.00038356,30]
[359303734,1745901811042,517.71557083,0.00038356,30]
[359303735,1745901812113,470.0,0.00038356,30]
[359303736,1745901812757,470.0,0.00038356,30]
[359303737,1745901813681,470.0,0.00038356,30]
[359303738,1745901814873,470.0,0.00038356,30]
[359303739,1745901818708,470.0,0.00038356,30]
[359303740,1745901819059,470.0,0.00038356,30]
[359303741,1745901820558,470.0,0.00038356,30]
[359303742,1745901820677,470.0,0.00038356,30]
[359303743,1745901822112,470.0,0.00038356,30]
[359303744,1745901822177,470.0,0.00038356,30]
[359303745,1745901822813,412.81077716,0.00038356,30]
[359303746,1745901823515,470.0,0.00038356,30]
[359303747,1745901824624,470.0,0.00038356,30]
[359303748,1745901825603,470.0,0.00038356,30]
[359303749,1745901826586,470.0,0.00038356,30]
[359303750,1745901826796,470.0,0.00038356,30]
[359303751,1745901829811,665.62,0.00038356,30]
[359303752,1745901830419,490.22,0.00038356,30]
[359303753,1745901831723,470.0,0.00038356,30]
[359303754,1745901833129,470.0,0.00038356,30]
[359303755,1745901834972,470.0,0.00038356,30]
[359303756,1745901835307,470.0,0.00038356,30]
[359303757,1745901835820,470.0,0.00038356,30]
[359303758,1745901837522,470.0,0.00038356,30]
[359303759,1745901840275,470.0,0.00038356,30]
[359303760,1745901840894,470.0,0.00038356,30]
[359303761,1745901841122,561.24,0.00038356,30]
[359303762,1745901841325,1016.56,0.00038356,30]
[359303763,1745901842072,470.0,0.00038356,30]
[359303764,1745901843394,1399.02,0.00038356,30]
[359303765,1745901843920,552.95,0.00038356,30]
[359303766,1745901845719,470.0,0.00038356,30]
[359303767,1745901846941,474.73,0.00038356,30]
[359303768,1745901847857,470.0,0.00038356,30]
[359303769,1745901849419,470.0,0.00038356,30]
[359303770,1745901850083,959.56,0.00038356,30]
[359303771,1745901851697,470.0,0.00038356,30]
[359303772,1745901853165,617.88,0.00038356,30]
[359303773,1745901854574,2052.0,0.00038356,30]
[359303774,1745901855501,483.41,0.00038356,30]
[359303775,1745901858054,470.0,0.00038356,30]
[359303776,1745901858152,470.0,0.00038356,30]
[359303777,1745901858253,470.0,0.00038356,30]
[359303778,1745901858741,470.0,0.00038356,30]
[359303779,1745901858919,470.0,0.00038356,30]
[359303780,1745901861308,470.0,0.00038356,30]
[359303781,1745901861567,522.18,0.00038356,30]
[359303782,1745901862221,470.0,0.00038356,30]
[359303783,1745901862352,698.44,0.00038356,30]
[359303784,1745901863420,626.41,0.00038356,30]
[359303785,1745901865148,470.0,0.00038356,30]
[359303786,1745901865251,507.23956227,0.00038356,30]
[359303787,1745901865630,470.0,0.00038356,30]
[359303788,1745901865801,470.0,0.00038356,30]
[359303789,1745901865963,828.07,0.00038356,30]
[359303790,1745901868855,720.1,0.00038356,30]
[359303791,1745901868914,470.0,0.00038356,30]
[359303792,1745901871012,470.0,0.00038356,30]
[359303793,1745901871303,470.0,0.00038356,30]
[359303794,1745901872182,470.0,0.00038356,30]
[359303795,1745901873186,470.0,0.00038356,30]
[359303796,1745901874591,841.58,0.00038356,30]
[359303797,1745901875071,655.78,0.00038356,30]
[359303798,1745901876922,599.2,0.00038356,30]
[359303799,1745901877047,1224.82,0.00038356,30]
[359303800,1745901877440,470.0,0.00038356,30]
[359303801,1745901878391,164.78582155,0.00038356,30]
[359303802,1745901879438,1012.75,0.00038356,30]
[359303803,1745901879511,508.042915,0.00038356,120]
[359303804,1745901880578,470.0,0.00038356,30]
[359303805,1745901883179,470.0,0.00038356,30]
[359303806,1745901883238,470.0,0.00038356,30]
[359303807,1745901883866,470.0,0.00038356,30]
[359303808,1745901884830,800.68,0.00038356,30]
[359303809,1745901885774,470.0,0.00038356,30]
[359303810,1745901887968,470.0,0.00038356,30]
[359303811,1745901888444,470.0,0.00038356,30]
[359303812,1745901889172,1000.49,0.00038356,30]
[359303813,1745901889225,470.0,0.00038356,30]
[359303814,1745901889793,473.81,0.00038356,30]
[359303815,1745901893098,512.13131933,0.00038356,30]
[359303816,1745901893230,470.0,0.00038356,30]
[359303817,1745901893632,470.0,0.00038356,30]
[359303818,1745901893691,470.0,0.00038356,30]
[359303819,1745901895164,470.0,0.00038356,30]
[359303820,1745901895215,1865.92,0.00038356,30]
[359303821,1745901895558,808.53,0.00038356,30]
[359303822,1745901895724,600.0,0.00038356,30]
[359303823,1745901896394,470.0,0.00038356,30]
[359303824,1745901896649,709.47,0.00038356,30]
[359303825,1745901898720,511.95,0.00038356,30]
[359303826,1745901899116,470.0,0.00038356,30]
[359303827,1745901899368,497.89,0.00038356,30]
[359303828,1745901902497,470.0,0.00038356,30]
[359303829,1745901903355,470.0,0.00038356,30]
[359303830,1745901903791,470.0,0.00038356,30]
[359303831,1745901904439,1193.28,0.00038356,30]
[359303832,1745901904501,915.72,0.00038356,30]
[359303833,1745901904779,596.72,0.00038356,30]
[359303834,1745901907424,470.0,0.00038356,30]
[359303835,1745901908173,468.0,0.00038356,30]
[359303836,1745901908926,470.0,0.00038356,30]
[359303837,1745901909387,470.0,0.00038356,30]
[359303838,1745901910914,470.0,0.00038356,30]
[359303839,1745901911797,150.0,0.00038356,30]
[359303840,1745901912191,1014.24,0.00038356,30]
[359303841,1745901912821,717.59,0.00038356,30]
[359303842,1745901913245,470.0,0.00038356,30]
[359303843,1745901913796,5663.0,0.00038356,30]
[359303844,1745901913940,470.0,0.00038356,30]
[359303845,1745901914005,470.0,0.00038356,30]
[359303846,1745901914374,470.0,0.00038356,30]
[359303847,1745901915664,470.0,0.00038356,30]
[359303848,1745901916930,870.78,0.00038356,30]
[359303849,1745901917145,605.86130628,0.00038356,30]
[359303850,1745901920072,1553.83,0.00038356,30]
[359303851,1745901921341,983.9,0.00038356,30]
[359303852,1745901922811,1220.67,0.00038356,30]
[359303853,1745901923049,470.0,0.00038356,30]
[359303854,1745901923108,470.0,0.00038356,30]
[359303855,1745901924076,470.0,0.00038356,30]
[359303856,1745901924494,470.0,0.00038356,30]
[359303857,1745901925771,470.0,0.00038356,30]
[359303858,1745901925848,1239.86,0.00038356,30]
[359303859,1745901926484,470.0,0.00038356,30]
[359303860,1745901926567,470.0,0.00038356,30]
[359303861,1745901926884,495.09,0.00038356,30]
[359303862,1745901928979,470.0,0.00038356,30]
[359303863,1745901929550,517.26,0.00038356,30]
[359303864,1745901930024,470.0,0.00038356,30]
[359303865,1745901931144,612.91,0.00038356,30]
[359303866,1745901932808,608.22183357,0.00038356,30]
[359303867,1745901933866,1150.89,0.00038356,30]
[359303868,1745901933919,470.0,0.00038356,30]
[359303869,1745901934740,470.0,0.00038356,30]
[359303870,1745901935389,470.0,0.00038356,30]
[359303871,1745901937436,470.0,0.00038356,30]
[359303872,1745901937512,470.0,0.00038356,30]
[359303873,1745901937899,470.0,0.00038356,30]
[359303874,1745901938389,470.0,0.00038356,30]
[359303875,1745901939597,470.0,0.00038356,30]
[359303876,1745901939734,470.0,0.00038356,30]
[359303877,1745901940353,470.0,0.00038356,30]
[359303878,1745901940576,470.0,0.00038356,30]
[359303879,1745901940632,470.0,0.00038356,30]
[359303880,1745901942126,470.0,0.00038356,30]
[359303881,1745901942212,470.0,0.00038356,30]
[359303882,1745901943711,470.0,0.00038356,30]
[359303883,1745901945403,470.0,0.00038356,30]
[359303884,1745901945636,482.77,0.00038356,30]
[359303885,1745901945726,1355.92,0.00038356,30]
[359303886,1745901945779,464.95582799,0.00038356,30]
[359303887,1745901945839,479.74559379,0.00038356,30]
[359303888,1745901945983,470.0,0.00038356,30]
[359303889,1745901946512,913.08,0.00038356,30]
[359303890,1745901948878,470.0,0.00038356,30]
[359303891,1745901950858,653.43,0.00038356,30]
[359303892,1745901951193,470.0,0.00038356,30]
[359303893,1745901954001,534.48,0.00038356,30]
[359303894,1745901954829,470.0,0.00038356,30]
[359303895,1745901955710,470.0,0.00038356,30]
[359303896,1745901955826,470.0,0.00038356,30]
[359303897,1745901955913,569.56,0.00038356,30]
[359303898,1745901956722,1592.26,0.00038356,30]
[359303899,1745901957897,470.0,0.00038356,30]
[359303900,1745901958619,470.0,0.00038356,30]
[359303901,1745901961015,413.62528217,0.00038356,30]
[359303902,1745901961674,1168.66,0.00038356,30]
[359303903,1745901962452,470.0,0.00038356,30]
[359303904,1745901962512,470.0,0.00038356,30]
[359303905,1745901963001,470.0,0.00038356,30]
[359303906,1745901963929,416.53441445,0.00038356,30]
[359303907,1745901964819,470.0,0.00038356,30]
[359303908,1745901965162,470.0,0.00038356,30]
[359303909,1745901965839,451.91020079,0.00038356,30]
[359303910,1745901967990,470.0,0.00038356,30]
[359303911,1745901968143,470.0,0.00038356,30]
[359303912,1745901968806,470.0,0.00038356,30]
[359303913,1745901969402,470.0,0.00038356,30]
[359303914,1745901970119,470.0,0.00038356,30]
[359303915,1745901970448,470.0,0.00038356,30]
[359303916,1745901970500,470.0,0.00038356,30]
[359303917,1745901971037,1211.44,0.00038356,30]
[359303918,1745901971362,470.0,0.00038356,30]
[359303919,1745901972573,863.34,0.00038356,30]
[359303920,1745901972822,470.0,0.00038356,30]
[359303921,1745901976693,594.61,0.00038356,30]
[359303922,1745901977209,470.0,0.00038356,30]
[359303923,1745901977402,562.59,0.00038356,30]
[359303924,1745901979208,680.62,0.00038356,30]
[359303925,1745901979889,583.17,0.00038356,30]
[359303926,1745901980716,470.0,0.00038356,30]
[359303927,1745901980971,1154.74,0.00038356,30]
[359303928,1745901981106,470.0,0.00038356,30]
[359303929,1745901981208,470.0,0.00038356,30]
[359303930,1745901982238,500.0,0.00038356,30]
[359303931,1745901982409,470.0,0.00038356,30]
[359303932,1745901983282,470.0,0.00038356,30]
[359303933,1745901983819,470.0,0.00038356,30]
[359303934,1745901983875,470.0,0.00038356,30]
[359303935,1745901984673,470.0,0.00038356,30]
[359303936,1745901984799,637.38,0.00038356,30]
[359303937,1745901987019,470.0,0.00038356,30]
[359303938,1745901987433,470.0,0.00038356,30]
[359303939,1745901988233,750.21,0.00038356,30]
[359303940,1745901988383,470.0,0.00038356,30]
[359303941,1745901988942,3460.52,0.00038356,30]
[359303942,1745901989673,470.0,0.00038356,30]
[359303943,1745901991693,470.0,0.00038356,30]
[359303944,1745901992196,470.0,0.00038356,30]
[359303945,1745901992868,200.0,0.00038356,30]
[359303946,1745901993541,470.0,0.00038356,30]
[359303947,1745901993732,900.02,0.00038356,120]
[359303948,1745901994247,470.0,0.00038356,30]
[359303949,1745901994540,470.0,0.00038356,30]
[359303950,1745901995897,470.0,0.00038356,30]
[359303951,1745901997420,470.0,0.00038356,30]
[359303952,1745901998140,470.0,0.00038356,30]
[359303953,1745901999949,470.0,0.00038356,30]
[359303954,1745902000329,769.08,0.00038356,30]
[359303955,1745902000521,470.0,0.00038356,30]
[359303956,1745902001080,470.0,0.00038356,30]
[359303957,1745902001679,613.2,0.00038356,30]
[359303958,1745902002253,470.0,0.00038356,30]
[359303959,1745902002696,470.0,0.00038356,30]
[359303960,1745902004017,470.0,0.00038356,30]
[359303961,1745902004978,470.0,0.00038356,30]
[359303962,1745902005224,848.26,0.00038356,30]
[359303963,1745902006376,470.0,0.00038356,30]
[359303964,1745902007860,470.0,0.00038356,30]
[359303965,1745902009120,470.0,0.00038356,30]
[359303966,1745902009182,470.0,0.00038356,30]
[359303967,1745902010299,470.0,0.00038356,30]
[359303968,1745902010695,275.49140507,0.00038356,30]
[359303969,1745902011430,470.0,0.00038356,30]
[359303970,1745902011516,470.0,0.00038356,30]
[359303971,1745902012775,500.0,0.00038356,120]
[359303972,1745902013375,25200.44,0.00038356,30]
[359303973,1745902013433,914.79,0.00038356,30]
[359303974,1745902013836,470.0,0.00038356,30]
[359303975,1745902014706,470.0,0.00038356,30]
[359303976,1745902015385,527.63,0.00038356,30]
[359303977,1745902015983,470.0,0.00038356,30]
[359303978,1745902016694,633.85,0.00038356,30]
[359303979,1745902016809,470.0,0.00038356,30]
[359303980,1745902017084,470.0,0.00038356,30]
[359303981,1745902018513,510.08,0.00038356,30]
[359303982,1745902019391,470.0,0.00038356,30]
[359303983,1745902020701,470.0,0.00038356,30]
[359303984,1745902021120,857.45,0.00038356,30]
[359303985,1745902022211,470.0,0.00038356,30]
[359303986,1745902023548,426.84903594,0.00038356,30]
[359303987,1745902023628,500.6,0.00038356,30]
[359303988,1745902024302,470.0,0.00038356,30]
[359303989,1745902024367,470.0,0.00038356,30]
[359303990,1745902024784,470.0,0.00038356,30]
[359303991,1745902025099,470.0,0.00038356,30]
[359303992,1745902027374,470.0,0.00038356,30]
[359303993,1745902027677,470.0,0.00038356,30]
[359303994,1745902028082,470.0,0.00038356,30]
[359303995,1745902028382,470.0,0.00038356,30]
[359303996,1745902031093,470.0,0.00038356,30]
[359303997,1745902031706,250.0,0.00038356,30]
[359303998,1745902032311,498.71,0.00038356,30]
[359303999,1745902032365,974.2,0.00038356,30]
[359304000,1745902032584,1954.77,0.00038356,30]
[359304001,1745902032925,470.0,0.00038356,30]
[359304002,1745902033361,470.0,0.00038356,30]
[359304003,1745902036485,470.0,0.00038356,30]
[359304004,1745902036768,470.0,0.00038356,30]
[359304005,1745902036869,470.0,0.00038356,30]
[359304006,1745902038546,150.0,0.00038356,30]
[359304007,1745902038793,668.92,0.00038356,30]
[359304008,1745902039075,300.0,0.00038356,30]
[359304009,1745902039473,183.28,0.00032877,30]
[359304010,1745902039851,183.28,0.00036986,30]
[359304011,1745902039984,620.5,0.00038356,30]
[359304012,1745902040106,1603.9,0.00038356,30]
[359304013,1745902041954,470.0,0.00038356,30]
[359304014,1745902044952,568.10128523,0.00033899,32]
[359304015,1745902045908,470.0,0.00038356,30]
[359304016,1745902046986,470.0,0.00038356,30]
[359304017,1745902047057,484.02516769,0.00038356,30]
[359304018,1745902047588,470.0,0.00038356,30]
[359304019,1745902047822,470.0,0.00038356,30]
[359304020,1745902047873,470.0,0.00038356,30]
[359304021,1745902049199,470.0,0.00038356,30]
[359304022,1745902049491,470.0,0.00038356,30]
[359304023,1745902049808,470.0,0.00038356,30]
[359304024,1745902049864,1274.01,0.00038356,30]
[359304025,1745902049954,568.10128523,0.00037178,42]
[359304026,1745902050783,470.0,0.00038356,30]
[359304027,1745902051085,470.0,0.00038356,30]
[359304028,1745902051133,500.0,0.00038356,30]
[359304029,1745902052485,470.0,0.00038356,30]
[359304030,1745902053832,821.37,0.00038356,30]
[359304031,1745902054083,470.0,0.00038356,30]
[359304032,1745902054506,470.0,0.00038356,30]
[359304033,1745902054554,470.0,0.00038356,30]
[359304034,1745902054811,470.0,0.00038356,30]
[359304035,1745902054865,470.0,0.00038356,30]
[359304036,1745902057804,470.0,0.00038356,30]
[359304037,1745902058529,470.0,0.00038356,30]
[359304038,1745902058627,470.0,0.00038356,30]
[359304039,1745902058734,470.0,0.00038356,30]
[359304040,1745902059922,470.0,0.00038356,30]
[359304041,1745902060245,4954.82,0.00038356,30]
[359304042,1745902060290,470.0,0.00038356,30]
[359304043,1745902061300,1340.72,0.00038356,30]
[359304044,1745902061730,1809.24,0.00038356,30]
[359304045,1745902061791,635.42,0.00038356,30]
[359304046,1745902061964,470.0,0.00038356,30]
[359304047,1745902062448,510.90685067,0.00038356,30]
[359304048,1745902064280,470.0,0.00038356,30]
[359304049,1745902064877,470.0,0.00038356,30]
[359304050,1745902065236,470.0,0.00038356,30]
[359304051,1745902065737,470.0,0.00038356,30]
[359304052,1745902068218,470.0,0.00038356,30]
[359304053,1745902069798,470.0,0.00038356,30]
[359304054,1745902071856,470.0,0.00038356,30]
[359304055,1745902072942,165.9935241,0.00038356,30]
[359304056,1745902074087,200.0,0.00036986,60]
[359304057,1745902074546,516.24208113,0.00038356,30]
[359304058,1745902075546,470.0,0.00038356,30]
[359304059,1745902075633,470.0,0.00038356,30]
[359304060,1745902076404,470.0,0.00038356,30]
[359304061,1745902078588,500.43,0.00038356,30]
[359304062,1745902078674,470.0,0.00038356,30]
[359304063,1745902079284,470.0,0.00038356,30]
[359304064,1745902079763,470.0,0.00038356,30]
[359304065,1745902081688,470.0,0.00038356,30]
[359304066,1745902083328,470.0,0.00038356,30]
[359304067,1745902083837,470.0,0.00038356,30]
[359304068,1745902083925,761.77,0.00038356,30]
[359304069,1745902083976,1273.63,0.00038356,30]
[359304070,1745902084067,470.0,0.00038356,30]
[359304071,1745902084301,470.0,0.00038356,30]
[359304072,1745902085951,470.0,0.00038356,30]
[359304073,1745902086160,470.0,0.00038356,30]
[359304074,1745902086252,470.0,0.00038356,30]
[359304075,1745902086312,973.41,0.00038356,30]
[359304076,1745902087958,166.8638038,0.00038356,30]
[359304077,1745902089025,470.0,0.00038356,30]
[359304078,1745902089480,470.0,0.00038356,30]
[359304079,1745902089830,529.91,0.00038356,30]
[359304080,1745902090764,470.0,0.00038356,30]
[359304081,1745902091560,470.0,0.00038356,30]
[359304082,1745902091913,470.0,0.00038356,30]
[359304083,1745902092779,445.59169628,0.00038356,30]
[359304084,1745902093388,470.0,0.00038356,30]
[359304085,1745902093758,470.0,0.00038356,30]
[359304086,1745902093855,470.0,0.00038356,30]
[359304087,1745902094384,470.0,0.00038356,30]
[359304088,1745902095471,3959.11,0.00038356,30]
[359304089,1745902098470,526.97,0.00038356,30]
[359304090,1745902098525,592.13,0.00038356,30]
[359304091,1745902098691,470.0,0.00038356,30]
[359304092,1745902099621,470.0,0.00038356,30]
[359304093,1745902100246,470.0,0.00038356,30]
[359304094,1745902100300,470.0,0.00038356,30]
[359304095,1745902100858,470.0,0.00038356,30]
[359304096,1745902101184,470.0,0.00038356,30]
[359304097,1745902102375,272.23917034,0.00038356,30]
[359304098,1745902102425,470.0,0.00038356,30]
[359304099,1745902103619,470.0,0.00038356,30]
[359304100,1745902103897,470.0,0.00038356,30]
[359304101,1745902104285,556.52,0.00038356,30]
[359304102,1745902104348,470.0,0.00038356,30]
[359304103,1745902104916,470.0,0.00038356,30]
[359304104,1745902105059,488.36,0.00038356,30]
[359304105,1745902105952,470.0,0.00038356,30]
[359304106,1745902106258,834.49,0.00038356,30]
[359304107,1745902106384,669.33,0.00038356,30]
[359304108,1745902107075,470.0,0.00038356,30]
[359304109,1745902107828,470.0,0.00038356,30]
[359304110,1745902107892,470.0,0.00038356,30]
[359304111,1745902108830,470.0,0.00038356,30]
[359304112,1745902109507,470.0,0.00038356,30]
[359304113,1745902111938,945.09,0.00038356,30]
[359304114,1745902112058,470.0,0.00038356,30]
[359304115,1745902112914,470.0,0.00038356,30]
[359304116,1745902113785,477.15,0.00038356,30]
[359304117,1745902113860,470.0,0.00038356,30]
[359304118,1745902113928,470.0,0.00038356,30]
[359304119,1745902114275,470.0,0.00038356,30]
[359304120,1745902114777,470.0,0.00038356,30]
[359304121,1745902115692,470.0,0.00038356,30]
[359304122,1745902118448,318.78738895,0.00038356,30]
[359304123,1745902118497,470.0,0.00038356,30]
[359304124,1745902119430,562.93418343,0.00038356,30]
[359304125,1745902119485,958.8,0.00038356,30]
[359304126,1745902120743,470.0,0.00038356,30]
[359304127,1745902121385,574.23,0.00038356,30]
[359304128,1745902122801,470.0,0.00038356,30]
[359304129,1745902124090,470.0,0.00038356,30]
[359304130,1745902124791,509.68,0.00038356,30]
[359304131,1745902125363,470.0,0.00038356,30]
[359304132,1745902125881,470.0,0.00038356,30]
[359304133,1745902127253,470.0,0.00038356,30]
[359304134,1745902127822,470.0,0.00038356,30]
[359304135,1745902127875,470.0,0.00038356,30]
[359304136,1745902128150,470.0,0.00038356,30]
[359304137,1745902128243,470.0,0.00038356,30]
[359304138,1745902129003,470.0,0.00038356,30]
[359304139,1745902129063,470.0,0.00038356,30]
[359304140,1745902129952,767.32,0.00038356,30]
[359304141,1745902131550,470.0,0.00038356,30]
[359304142,1745902131826,470.0,0.00038356,30]